{"text_format":"3","workbook":"xlsx","n_sheets":4,"sheets":["Budsjettsammendrag hittil i år","Oversikt over månedsutgifter","Spesifiserte utgifter","Donasjoner og sponsorutgifter"],"not_rendered":{"defined_names":8,"comments":2},"read":"whole","date_system":"1900"}

{"sheet":"Budsjettsammendrag hittil i år","index":0,"n_rows":30,"n_cols":6,"rows_kept":30,"merged":[[1,0,1,5]]}
[]
["Faktisk versus budsjett hittil i år for 2005"]
[]
["Hovedbokkode","Kontonavn","Faktisk","Budsjett","Gjenstående i kr","Gjenstående i %"]
[]
[1000,"Reklame",{"$f":"'Oversikt over månedsutgifter'!O6","v":{"v":750,"d":"kr 750.00"}},{"v":100000,"d":"kr 100,000.00"},{"$f":"SUM(+D6-C6)","v":{"v":99250,"d":"kr 99,250.00"}},{"$f":"SUM(E6/D6)","v":{"v":0.9925,"d":"99.25%"}}]
[]
[2000,"Kontorutstyr",{"$f":"'Oversikt over månedsutgifter'!O8","v":0},{"v":100000,"d":"kr 100,000.00"},{"$f":"SUM(+D8-C8)","v":{"v":100000,"d":"kr 100,000.00"}},{"$f":"SUM(E8/D8)","v":{"v":1,"d":"100.00%"}}]
[]
[3000,"Skrivere",{"$f":"'Oversikt over månedsutgifter'!O10","v":0},{"v":100000,"d":"kr 100,000.00"},{"$f":"SUM(+D10-C10)","v":{"v":100000,"d":"kr 100,000.00"}},{"$f":"SUM(E10/D10)","v":{"v":1,"d":"100.00%"}}]
[]
[4000,"Serverutgifter",{"$f":"'Oversikt over månedsutgifter'!O12","v":0},{"v":100000,"d":"kr 100,000.00"},{"$f":"SUM(+D12-C12)","v":{"v":100000,"d":"kr 100,000.00"}},{"$f":"SUM(E12/D12)","v":{"v":1,"d":"100.00%"}}]
[]
[5000,"Utstyr",{"$f":"'Oversikt over månedsutgifter'!O14","v":0},{"v":50000,"d":"kr 50,000.00"},{"$f":"SUM(+D14-C14)","v":{"v":50000,"d":"kr 50,000.00"}},{"$f":"SUM(E14/D14)","v":{"v":1,"d":"100.00%"}}]
[]
[6000,"Klientutgifter",{"$f":"'Oversikt over månedsutgifter'!O16","v":0},{"v":25000,"d":"kr 25,000.00"},{"$f":"SUM(+D16-C16)","v":{"v":25000,"d":"kr 25,000.00"}},{"$f":"SUM(E16/D16)","v":{"v":1,"d":"100.00%"}}]
[]
[7000,"Datamaskiner",{"$f":"'Oversikt over månedsutgifter'!O18","v":{"v":2500,"d":"kr 2,500.00"}},{"v":75000,"d":"kr 75,000.00"},{"$f":"SUM(+D18-C18)","v":{"v":72500,"d":"kr 72,500.00"}},{"$f":"SUM(E18/D18)","v":{"v":0.9666666666666667,"d":"96.67%"}}]
[]
[8000,"Helseforsikring",{"$f":"'Oversikt over månedsutgifter'!O20","v":0},{"v":65000,"d":"kr 65,000.00"},{"$f":"SUM(+D20-C20)","v":{"v":65000,"d":"kr 65,000.00"}},{"$f":"SUM(E20/D20)","v":{"v":1,"d":"100.00%"}}]
[]
[9000,"Byggekostnader",{"$f":"'Oversikt over månedsutgifter'!O22","v":0},{"v":125000,"d":"kr 125,000.00"},{"$f":"SUM(+D22-C22)","v":{"v":125000,"d":"kr 125,000.00"}},{"$f":"SUM(E22/D22)","v":{"v":1,"d":"100.00%"}}]
[]
[10000,"Markedsføring",{"$f":"'Oversikt over månedsutgifter'!O24","v":0},{"v":100000,"d":"kr 100,000.00"},{"$f":"SUM(+D24-C24)","v":{"v":100000,"d":"kr 100,000.00"}},{"$f":"SUM(E24/D24)","v":{"v":1,"d":"100.00%"}}]
[]
[11000,"Veldedige formål",{"$f":"'Oversikt over månedsutgifter'!O26","v":{"v":2500,"d":"kr 2,500.00"}},{"v":250000,"d":"kr 250,000.00"},{"$f":"SUM(+D26-C26)","v":{"v":247500,"d":"kr 247,500.00"}},{"$f":"SUM(E26/D26)","v":{"v":0.99,"d":"99.00%"}}]
[]
[12000,"Sponsorutgifter",{"$f":"'Oversikt over månedsutgifter'!O28","v":{"v":1000,"d":"kr 1,000.00"}},{"v":50000,"d":"kr 50,000.00"},{"$f":"SUM(+D28-C28)","v":{"v":49000,"d":"kr 49,000.00"}},{"$f":"SUM(E28/D28)","v":{"v":0.98,"d":"98.00%"}}]
[]
[null,"TOTALT",{"$f":"SUM(C6:C28)","v":{"v":6750,"d":"kr 6,750.00"}},{"$f":"SUM(D6:D28)","v":{"v":1140000,"d":"kr 1,140,000.00"}},{"$f":"SUM(E6:E28)","v":{"v":1133250,"d":"kr 1,133,250.00"}},{"$f":"SUM(E30/D30)","v":{"v":0.9940789473684211,"d":"99.41%"}}]

{"sheet":"Oversikt over månedsutgifter","index":1,"n_rows":30,"n_cols":15,"rows_kept":30,"merged":[[1,0,1,14]]}
[]
["Månedlige utgifter 2005"]
[]
["Hovedbokkode","Kontonavn","2005-01-01","2005-02-01","2005-03-01","2005-04-01","maj/05","2005-06-01","2005-07-01","2005-08-01","2005-09-01","okt/05","2005-11-01","2005-12-01",2005]
[]
[1000,"Reklame",{"$f":"SUMIF('Donasjoner og sponsorutgifter'!$L:$L,\"=\"&($A6&TEXT(C$4,\"MMM-YY\")),'Donasjoner og sponsorutgifter'!$D:$D)+SUMIF('Spesifiserte utgifter'!$J:$J,\"=\"&($A6&TEXT(C$4,\"MMM-YY\")),'Spesifiserte utgifter'!$E:$E)","v":{"v":750,"d":"kr 750.00"}},{"$f":"SUMIF('Donasjoner og sponsorutgifter'!$L:$L,\"=\"&($A6&TEXT(D$4,\"MMM-YY\")),'Donasjoner og sponsorutgifter'!$D:$D)+SUMIF('Spesifiserte utgifter'!$J:$J,\"=\"&($A6&TEXT(D$4,\"MMM-YY\")),'Spesifiserte utgifter'!$E:$E)","v":0},{"$f":"SUMIF('Donasjoner og sponsorutgifter'!$L:$L,\"=\"&($A6&TEXT(E$4,\"MMM-YY\")),'Donasjoner og sponsorutgifter'!$D:$D)+SUMIF('Spesifiserte utgifter'!$J:$J,\"=\"&($A6&TEXT(E$4,\"MMM-YY\")),'Spesifiserte utgifter'!$E:$E)","v":0},{"$f":"SUMIF('Donasjoner og sponsorutgifter'!$L:$L,\"=\"&($A6&TEXT(F$4,\"MMM-YY\")),'Donasjoner og sponsorutgifter'!$D:$D)+SUMIF('Spesifiserte utgifter'!$J:$J,\"=\"&($A6&TEXT(F$4,\"MMM-YY\")),'Spesifiserte utgifter'!$E:$E)","v":0},{"$f":"SUMIF('Donasjoner og sponsorutgifter'!$L:$L,\"=\"&($A6&TEXT(G$4,\"MMM-YY\")),'Donasjoner og sponsorutgifter'!$D:$D)+SUMIF('Spesifiserte utgifter'!$J:$J,\"=\"&($A6&TEXT(G$4,\"MMM-YY\")),'Spesifiserte utgifter'!$E:$E)","v":0},{"$f":"SUMIF('Donasjoner og sponsorutgifter'!$L:$L,\"=\"&($A6&TEXT(H$4,\"MMM-YY\")),'Donasjoner og sponsorutgifter'!$D:$D)+SUMIF('Spesifiserte utgifter'!$J:$J,\"=\"&($A6&TEXT(H$4,\"MMM-YY\")),'Spesifiserte utgifter'!$E:$E)","v":0},{"$f":"SUMIF('Donasjoner og sponsorutgifter'!$L:$L,\"=\"&($A6&TEXT(I$4,\"MMM-YY\")),'Donasjoner og sponsorutgifter'!$D:$D)+SUMIF('Spesifiserte utgifter'!$J:$J,\"=\"&($A6&TEXT(I$4,\"MMM-YY\")),'Spesifiserte utgifter'!$E:$E)","v":0},{"$f":"SUMIF('Donasjoner og sponsorutgifter'!$L:$L,\"=\"&($A6&TEXT(J$4,\"MMM-YY\")),'Donasjoner og sponsorutgifter'!$D:$D)+SUMIF('Spesifiserte utgifter'!$J:$J,\"=\"&($A6&TEXT(J$4,\"MMM-YY\")),'Spesifiserte utgifter'!$E:$E)","v":0},{"$f":"SUMIF('Donasjoner og sponsorutgifter'!$L:$L,\"=\"&($A6&TEXT(K$4,\"MMM-YY\")),'Donasjoner og sponsorutgifter'!$D:$D)+SUMIF('Spesifiserte utgifter'!$J:$J,\"=\"&($A6&TEXT(K$4,\"MMM-YY\")),'Spesifiserte utgifter'!$E:$E)","v":0},{"$f":"SUMIF('Donasjoner og sponsorutgifter'!$L:$L,\"=\"&($A6&TEXT(L$4,\"MMM-YY\")),'Donasjoner og sponsorutgifter'!$D:$D)+SUMIF('Spesifiserte utgifter'!$J:$J,\"=\"&($A6&TEXT(L$4,\"MMM-YY\")),'Spesifiserte utgifter'!$E:$E)","v":0},{"$f":"SUMIF('Donasjoner og sponsorutgifter'!$L:$L,\"=\"&($A6&TEXT(M$4,\"MMM-YY\")),'Donasjoner og sponsorutgifter'!$D:$D)+SUMIF('Spesifiserte utgifter'!$J:$J,\"=\"&($A6&TEXT(M$4,\"MMM-YY\")),'Spesifiserte utgifter'!$E:$E)","v":0},{"$f":"SUMIF('Donasjoner og sponsorutgifter'!$L:$L,\"=\"&($A6&TEXT(N$4,\"MMM-YY\")),'Donasjoner og sponsorutgifter'!$D:$D)+SUMIF('Spesifiserte utgifter'!$J:$J,\"=\"&($A6&TEXT(N$4,\"MMM-YY\")),'Spesifiserte utgifter'!$E:$E)","v":0},{"$f":"SUM(C6:N6)","v":{"v":750,"d":"kr 750.00"}}]
[]
[2000,"Kontorutstyr",{"$f":"SUMIF('Donasjoner og sponsorutgifter'!$L:$L,\"=\"&($A8&TEXT(C$4,\"MMM-YY\")),'Donasjoner og sponsorutgifter'!$D:$D)+SUMIF('Spesifiserte utgifter'!$J:$J,\"=\"&($A8&TEXT(C$4,\"MMM-YY\")),'Spesifiserte utgifter'!$E:$E)","v":0},{"$f":"SUMIF('Donasjoner og sponsorutgifter'!$L:$L,\"=\"&($A8&TEXT(D$4,\"MMM-YY\")),'Donasjoner og sponsorutgifter'!$D:$D)+SUMIF('Spesifiserte utgifter'!$J:$J,\"=\"&($A8&TEXT(D$4,\"MMM-YY\")),'Spesifiserte utgifter'!$E:$E)","v":0},{"$f":"SUMIF('Donasjoner og sponsorutgifter'!$L:$L,\"=\"&($A8&TEXT(E$4,\"MMM-YY\")),'Donasjoner og sponsorutgifter'!$D:$D)+SUMIF('Spesifiserte utgifter'!$J:$J,\"=\"&($A8&TEXT(E$4,\"MMM-YY\")),'Spesifiserte utgifter'!$E:$E)","v":0},{"$f":"SUMIF('Donasjoner og sponsorutgifter'!$L:$L,\"=\"&($A8&TEXT(F$4,\"MMM-YY\")),'Donasjoner og sponsorutgifter'!$D:$D)+SUMIF('Spesifiserte utgifter'!$J:$J,\"=\"&($A8&TEXT(F$4,\"MMM-YY\")),'Spesifiserte utgifter'!$E:$E)","v":0},{"$f":"SUMIF('Donasjoner og sponsorutgifter'!$L:$L,\"=\"&($A8&TEXT(G$4,\"MMM-YY\")),'Donasjoner og sponsorutgifter'!$D:$D)+SUMIF('Spesifiserte utgifter'!$J:$J,\"=\"&($A8&TEXT(G$4,\"MMM-YY\")),'Spesifiserte utgifter'!$E:$E)","v":0},{"$f":"SUMIF('Donasjoner og sponsorutgifter'!$L:$L,\"=\"&($A8&TEXT(H$4,\"MMM-YY\")),'Donasjoner og sponsorutgifter'!$D:$D)+SUMIF('Spesifiserte utgifter'!$J:$J,\"=\"&($A8&TEXT(H$4,\"MMM-YY\")),'Spesifiserte utgifter'!$E:$E)","v":0},{"$f":"SUMIF('Donasjoner og sponsorutgifter'!$L:$L,\"=\"&($A8&TEXT(I$4,\"MMM-YY\")),'Donasjoner og sponsorutgifter'!$D:$D)+SUMIF('Spesifiserte utgifter'!$J:$J,\"=\"&($A8&TEXT(I$4,\"MMM-YY\")),'Spesifiserte utgifter'!$E:$E)","v":0},{"$f":"SUMIF('Donasjoner og sponsorutgifter'!$L:$L,\"=\"&($A8&TEXT(J$4,\"MMM-YY\")),'Donasjoner og sponsorutgifter'!$D:$D)+SUMIF('Spesifiserte utgifter'!$J:$J,\"=\"&($A8&TEXT(J$4,\"MMM-YY\")),'Spesifiserte utgifter'!$E:$E)","v":0},{"$f":"SUMIF('Donasjoner og sponsorutgifter'!$L:$L,\"=\"&($A8&TEXT(K$4,\"MMM-YY\")),'Donasjoner og sponsorutgifter'!$D:$D)+SUMIF('Spesifiserte utgifter'!$J:$J,\"=\"&($A8&TEXT(K$4,\"MMM-YY\")),'Spesifiserte utgifter'!$E:$E)","v":0},{"$f":"SUMIF('Donasjoner og sponsorutgifter'!$L:$L,\"=\"&($A8&TEXT(L$4,\"MMM-YY\")),'Donasjoner og sponsorutgifter'!$D:$D)+SUMIF('Spesifiserte utgifter'!$J:$J,\"=\"&($A8&TEXT(L$4,\"MMM-YY\")),'Spesifiserte utgifter'!$E:$E)","v":0},{"$f":"SUMIF('Donasjoner og sponsorutgifter'!$L:$L,\"=\"&($A8&TEXT(M$4,\"MMM-YY\")),'Donasjoner og sponsorutgifter'!$D:$D)+SUMIF('Spesifiserte utgifter'!$J:$J,\"=\"&($A8&TEXT(M$4,\"MMM-YY\")),'Spesifiserte utgifter'!$E:$E)","v":0},{"$f":"SUMIF('Donasjoner og sponsorutgifter'!$L:$L,\"=\"&($A8&TEXT(N$4,\"MMM-YY\")),'Donasjoner og sponsorutgifter'!$D:$D)+SUMIF('Spesifiserte utgifter'!$J:$J,\"=\"&($A8&TEXT(N$4,\"MMM-YY\")),'Spesifiserte utgifter'!$E:$E)","v":0},{"$f":"SUM(C8:N8)","v":0}]
[]
[3000,"Skrivere",{"$f":"SUMIF('Donasjoner og sponsorutgifter'!$L:$L,\"=\"&($A10&TEXT(C$4,\"MMM-YY\")),'Donasjoner og sponsorutgifter'!$D:$D)+SUMIF('Spesifiserte utgifter'!$J:$J,\"=\"&($A10&TEXT(C$4,\"MMM-YY\")),'Spesifiserte utgifter'!$E:$E)","v":0},{"$f":"SUMIF('Donasjoner og sponsorutgifter'!$L:$L,\"=\"&($A10&TEXT(D$4,\"MMM-YY\")),'Donasjoner og sponsorutgifter'!$D:$D)+SUMIF('Spesifiserte utgifter'!$J:$J,\"=\"&($A10&TEXT(D$4,\"MMM-YY\")),'Spesifiserte utgifter'!$E:$E)","v":0},{"$f":"SUMIF('Donasjoner og sponsorutgifter'!$L:$L,\"=\"&($A10&TEXT(E$4,\"MMM-YY\")),'Donasjoner og sponsorutgifter'!$D:$D)+SUMIF('Spesifiserte utgifter'!$J:$J,\"=\"&($A10&TEXT(E$4,\"MMM-YY\")),'Spesifiserte utgifter'!$E:$E)","v":0},{"$f":"SUMIF('Donasjoner og sponsorutgifter'!$L:$L,\"=\"&($A10&TEXT(F$4,\"MMM-YY\")),'Donasjoner og sponsorutgifter'!$D:$D)+SUMIF('Spesifiserte utgifter'!$J:$J,\"=\"&($A10&TEXT(F$4,\"MMM-YY\")),'Spesifiserte utgifter'!$E:$E)","v":0},{"$f":"SUMIF('Donasjoner og sponsorutgifter'!$L:$L,\"=\"&($A10&TEXT(G$4,\"MMM-YY\")),'Donasjoner og sponsorutgifter'!$D:$D)+SUMIF('Spesifiserte utgifter'!$J:$J,\"=\"&($A10&TEXT(G$4,\"MMM-YY\")),'Spesifiserte utgifter'!$E:$E)","v":0},{"$f":"SUMIF('Donasjoner og sponsorutgifter'!$L:$L,\"=\"&($A10&TEXT(H$4,\"MMM-YY\")),'Donasjoner og sponsorutgifter'!$D:$D)+SUMIF('Spesifiserte utgifter'!$J:$J,\"=\"&($A10&TEXT(H$4,\"MMM-YY\")),'Spesifiserte utgifter'!$E:$E)","v":0},{"$f":"SUMIF('Donasjoner og sponsorutgifter'!$L:$L,\"=\"&($A10&TEXT(I$4,\"MMM-YY\")),'Donasjoner og sponsorutgifter'!$D:$D)+SUMIF('Spesifiserte utgifter'!$J:$J,\"=\"&($A10&TEXT(I$4,\"MMM-YY\")),'Spesifiserte utgifter'!$E:$E)","v":0},{"$f":"SUMIF('Donasjoner og sponsorutgifter'!$L:$L,\"=\"&($A10&TEXT(J$4,\"MMM-YY\")),'Donasjoner og sponsorutgifter'!$D:$D)+SUMIF('Spesifiserte utgifter'!$J:$J,\"=\"&($A10&TEXT(J$4,\"MMM-YY\")),'Spesifiserte utgifter'!$E:$E)","v":0},{"$f":"SUMIF('Donasjoner og sponsorutgifter'!$L:$L,\"=\"&($A10&TEXT(K$4,\"MMM-YY\")),'Donasjoner og sponsorutgifter'!$D:$D)+SUMIF('Spesifiserte utgifter'!$J:$J,\"=\"&($A10&TEXT(K$4,\"MMM-YY\")),'Spesifiserte utgifter'!$E:$E)","v":0},{"$f":"SUMIF('Donasjoner og sponsorutgifter'!$L:$L,\"=\"&($A10&TEXT(L$4,\"MMM-YY\")),'Donasjoner og sponsorutgifter'!$D:$D)+SUMIF('Spesifiserte utgifter'!$J:$J,\"=\"&($A10&TEXT(L$4,\"MMM-YY\")),'Spesifiserte utgifter'!$E:$E)","v":0},{"$f":"SUMIF('Donasjoner og sponsorutgifter'!$L:$L,\"=\"&($A10&TEXT(M$4,\"MMM-YY\")),'Donasjoner og sponsorutgifter'!$D:$D)+SUMIF('Spesifiserte utgifter'!$J:$J,\"=\"&($A10&TEXT(M$4,\"MMM-YY\")),'Spesifiserte utgifter'!$E:$E)","v":0},{"$f":"SUMIF('Donasjoner og sponsorutgifter'!$L:$L,\"=\"&($A10&TEXT(N$4,\"MMM-YY\")),'Donasjoner og sponsorutgifter'!$D:$D)+SUMIF('Spesifiserte utgifter'!$J:$J,\"=\"&($A10&TEXT(N$4,\"MMM-YY\")),'Spesifiserte utgifter'!$E:$E)","v":0},{"$f":"SUM(C10:N10)","v":0}]
[]
[4000,"Serverutgifter",{"$f":"SUMIF('Donasjoner og sponsorutgifter'!$L:$L,\"=\"&($A12&TEXT(C$4,\"MMM-YY\")),'Donasjoner og sponsorutgifter'!$D:$D)+SUMIF('Spesifiserte utgifter'!$J:$J,\"=\"&($A12&TEXT(C$4,\"MMM-YY\")),'Spesifiserte utgifter'!$E:$E)","v":0},{"$f":"SUMIF('Donasjoner og sponsorutgifter'!$L:$L,\"=\"&($A12&TEXT(D$4,\"MMM-YY\")),'Donasjoner og sponsorutgifter'!$D:$D)+SUMIF('Spesifiserte utgifter'!$J:$J,\"=\"&($A12&TEXT(D$4,\"MMM-YY\")),'Spesifiserte utgifter'!$E:$E)","v":0},{"$f":"SUMIF('Donasjoner og sponsorutgifter'!$L:$L,\"=\"&($A12&TEXT(E$4,\"MMM-YY\")),'Donasjoner og sponsorutgifter'!$D:$D)+SUMIF('Spesifiserte utgifter'!$J:$J,\"=\"&($A12&TEXT(E$4,\"MMM-YY\")),'Spesifiserte utgifter'!$E:$E)","v":0},{"$f":"SUMIF('Donasjoner og sponsorutgifter'!$L:$L,\"=\"&($A12&TEXT(F$4,\"MMM-YY\")),'Donasjoner og sponsorutgifter'!$D:$D)+SUMIF('Spesifiserte utgifter'!$J:$J,\"=\"&($A12&TEXT(F$4,\"MMM-YY\")),'Spesifiserte utgifter'!$E:$E)","v":0},{"$f":"SUMIF('Donasjoner og sponsorutgifter'!$L:$L,\"=\"&($A12&TEXT(G$4,\"MMM-YY\")),'Donasjoner og sponsorutgifter'!$D:$D)+SUMIF('Spesifiserte utgifter'!$J:$J,\"=\"&($A12&TEXT(G$4,\"MMM-YY\")),'Spesifiserte utgifter'!$E:$E)","v":0},{"$f":"SUMIF('Donasjoner og sponsorutgifter'!$L:$L,\"=\"&($A12&TEXT(H$4,\"MMM-YY\")),'Donasjoner og sponsorutgifter'!$D:$D)+SUMIF('Spesifiserte utgifter'!$J:$J,\"=\"&($A12&TEXT(H$4,\"MMM-YY\")),'Spesifiserte utgifter'!$E:$E)","v":0},{"$f":"SUMIF('Donasjoner og sponsorutgifter'!$L:$L,\"=\"&($A12&TEXT(I$4,\"MMM-YY\")),'Donasjoner og sponsorutgifter'!$D:$D)+SUMIF('Spesifiserte utgifter'!$J:$J,\"=\"&($A12&TEXT(I$4,\"MMM-YY\")),'Spesifiserte utgifter'!$E:$E)","v":0},{"$f":"SUMIF('Donasjoner og sponsorutgifter'!$L:$L,\"=\"&($A12&TEXT(J$4,\"MMM-YY\")),'Donasjoner og sponsorutgifter'!$D:$D)+SUMIF('Spesifiserte utgifter'!$J:$J,\"=\"&($A12&TEXT(J$4,\"MMM-YY\")),'Spesifiserte utgifter'!$E:$E)","v":0},{"$f":"SUMIF('Donasjoner og sponsorutgifter'!$L:$L,\"=\"&($A12&TEXT(K$4,\"MMM-YY\")),'Donasjoner og sponsorutgifter'!$D:$D)+SUMIF('Spesifiserte utgifter'!$J:$J,\"=\"&($A12&TEXT(K$4,\"MMM-YY\")),'Spesifiserte utgifter'!$E:$E)","v":0},{"$f":"SUMIF('Donasjoner og sponsorutgifter'!$L:$L,\"=\"&($A12&TEXT(L$4,\"MMM-YY\")),'Donasjoner og sponsorutgifter'!$D:$D)+SUMIF('Spesifiserte utgifter'!$J:$J,\"=\"&($A12&TEXT(L$4,\"MMM-YY\")),'Spesifiserte utgifter'!$E:$E)","v":0},{"$f":"SUMIF('Donasjoner og sponsorutgifter'!$L:$L,\"=\"&($A12&TEXT(M$4,\"MMM-YY\")),'Donasjoner og sponsorutgifter'!$D:$D)+SUMIF('Spesifiserte utgifter'!$J:$J,\"=\"&($A12&TEXT(M$4,\"MMM-YY\")),'Spesifiserte utgifter'!$E:$E)","v":0},{"$f":"SUMIF('Donasjoner og sponsorutgifter'!$L:$L,\"=\"&($A12&TEXT(N$4,\"MMM-YY\")),'Donasjoner og sponsorutgifter'!$D:$D)+SUMIF('Spesifiserte utgifter'!$J:$J,\"=\"&($A12&TEXT(N$4,\"MMM-YY\")),'Spesifiserte utgifter'!$E:$E)","v":0},{"$f":"SUM(C12:N12)","v":0}]
[]
[5000,"Utstyr",{"$f":"SUMIF('Donasjoner og sponsorutgifter'!$L:$L,\"=\"&($A14&TEXT(C$4,\"MMM-YY\")),'Donasjoner og sponsorutgifter'!$D:$D)+SUMIF('Spesifiserte utgifter'!$J:$J,\"=\"&($A14&TEXT(C$4,\"MMM-YY\")),'Spesifiserte utgifter'!$E:$E)","v":0},{"$f":"SUMIF('Donasjoner og sponsorutgifter'!$L:$L,\"=\"&($A14&TEXT(D$4,\"MMM-YY\")),'Donasjoner og sponsorutgifter'!$D:$D)+SUMIF('Spesifiserte utgifter'!$J:$J,\"=\"&($A14&TEXT(D$4,\"MMM-YY\")),'Spesifiserte utgifter'!$E:$E)","v":0},{"$f":"SUMIF('Donasjoner og sponsorutgifter'!$L:$L,\"=\"&($A14&TEXT(E$4,\"MMM-YY\")),'Donasjoner og sponsorutgifter'!$D:$D)+SUMIF('Spesifiserte utgifter'!$J:$J,\"=\"&($A14&TEXT(E$4,\"MMM-YY\")),'Spesifiserte utgifter'!$E:$E)","v":0},{"$f":"SUMIF('Donasjoner og sponsorutgifter'!$L:$L,\"=\"&($A14&TEXT(F$4,\"MMM-YY\")),'Donasjoner og sponsorutgifter'!$D:$D)+SUMIF('Spesifiserte utgifter'!$J:$J,\"=\"&($A14&TEXT(F$4,\"MMM-YY\")),'Spesifiserte utgifter'!$E:$E)","v":0},{"$f":"SUMIF('Donasjoner og sponsorutgifter'!$L:$L,\"=\"&($A14&TEXT(G$4,\"MMM-YY\")),'Donasjoner og sponsorutgifter'!$D:$D)+SUMIF('Spesifiserte utgifter'!$J:$J,\"=\"&($A14&TEXT(G$4,\"MMM-YY\")),'Spesifiserte utgifter'!$E:$E)","v":0},{"$f":"SUMIF('Donasjoner og sponsorutgifter'!$L:$L,\"=\"&($A14&TEXT(H$4,\"MMM-YY\")),'Donasjoner og sponsorutgifter'!$D:$D)+SUMIF('Spesifiserte utgifter'!$J:$J,\"=\"&($A14&TEXT(H$4,\"MMM-YY\")),'Spesifiserte utgifter'!$E:$E)","v":0},{"$f":"SUMIF('Donasjoner og sponsorutgifter'!$L:$L,\"=\"&($A14&TEXT(I$4,\"MMM-YY\")),'Donasjoner og sponsorutgifter'!$D:$D)+SUMIF('Spesifiserte utgifter'!$J:$J,\"=\"&($A14&TEXT(I$4,\"MMM-YY\")),'Spesifiserte utgifter'!$E:$E)","v":0},{"$f":"SUMIF('Donasjoner og sponsorutgifter'!$L:$L,\"=\"&($A14&TEXT(J$4,\"MMM-YY\")),'Donasjoner og sponsorutgifter'!$D:$D)+SUMIF('Spesifiserte utgifter'!$J:$J,\"=\"&($A14&TEXT(J$4,\"MMM-YY\")),'Spesifiserte utgifter'!$E:$E)","v":0},{"$f":"SUMIF('Donasjoner og sponsorutgifter'!$L:$L,\"=\"&($A14&TEXT(K$4,\"MMM-YY\")),'Donasjoner og sponsorutgifter'!$D:$D)+SUMIF('Spesifiserte utgifter'!$J:$J,\"=\"&($A14&TEXT(K$4,\"MMM-YY\")),'Spesifiserte utgifter'!$E:$E)","v":0},{"$f":"SUMIF('Donasjoner og sponsorutgifter'!$L:$L,\"=\"&($A14&TEXT(L$4,\"MMM-YY\")),'Donasjoner og sponsorutgifter'!$D:$D)+SUMIF('Spesifiserte utgifter'!$J:$J,\"=\"&($A14&TEXT(L$4,\"MMM-YY\")),'Spesifiserte utgifter'!$E:$E)","v":0},{"$f":"SUMIF('Donasjoner og sponsorutgifter'!$L:$L,\"=\"&($A14&TEXT(M$4,\"MMM-YY\")),'Donasjoner og sponsorutgifter'!$D:$D)+SUMIF('Spesifiserte utgifter'!$J:$J,\"=\"&($A14&TEXT(M$4,\"MMM-YY\")),'Spesifiserte utgifter'!$E:$E)","v":0},{"$f":"SUMIF('Donasjoner og sponsorutgifter'!$L:$L,\"=\"&($A14&TEXT(N$4,\"MMM-YY\")),'Donasjoner og sponsorutgifter'!$D:$D)+SUMIF('Spesifiserte utgifter'!$J:$J,\"=\"&($A14&TEXT(N$4,\"MMM-YY\")),'Spesifiserte utgifter'!$E:$E)","v":0},{"$f":"SUM(C14:N14)","v":0}]
[]
[6000,"Klientutgifter",{"$f":"SUMIF('Donasjoner og sponsorutgifter'!$L:$L,\"=\"&($A16&TEXT(C$4,\"MMM-YY\")),'Donasjoner og sponsorutgifter'!$D:$D)+SUMIF('Spesifiserte utgifter'!$J:$J,\"=\"&($A16&TEXT(C$4,\"MMM-YY\")),'Spesifiserte utgifter'!$E:$E)","v":0},{"$f":"SUMIF('Donasjoner og sponsorutgifter'!$L:$L,\"=\"&($A16&TEXT(D$4,\"MMM-YY\")),'Donasjoner og sponsorutgifter'!$D:$D)+SUMIF('Spesifiserte utgifter'!$J:$J,\"=\"&($A16&TEXT(D$4,\"MMM-YY\")),'Spesifiserte utgifter'!$E:$E)","v":0},{"$f":"SUMIF('Donasjoner og sponsorutgifter'!$L:$L,\"=\"&($A16&TEXT(E$4,\"MMM-YY\")),'Donasjoner og sponsorutgifter'!$D:$D)+SUMIF('Spesifiserte utgifter'!$J:$J,\"=\"&($A16&TEXT(E$4,\"MMM-YY\")),'Spesifiserte utgifter'!$E:$E)","v":0},{"$f":"SUMIF('Donasjoner og sponsorutgifter'!$L:$L,\"=\"&($A16&TEXT(F$4,\"MMM-YY\")),'Donasjoner og sponsorutgifter'!$D:$D)+SUMIF('Spesifiserte utgifter'!$J:$J,\"=\"&($A16&TEXT(F$4,\"MMM-YY\")),'Spesifiserte utgifter'!$E:$E)","v":0},{"$f":"SUMIF('Donasjoner og sponsorutgifter'!$L:$L,\"=\"&($A16&TEXT(G$4,\"MMM-YY\")),'Donasjoner og sponsorutgifter'!$D:$D)+SUMIF('Spesifiserte utgifter'!$J:$J,\"=\"&($A16&TEXT(G$4,\"MMM-YY\")),'Spesifiserte utgifter'!$E:$E)","v":0},{"$f":"SUMIF('Donasjoner og sponsorutgifter'!$L:$L,\"=\"&($A16&TEXT(H$4,\"MMM-YY\")),'Donasjoner og sponsorutgifter'!$D:$D)+SUMIF('Spesifiserte utgifter'!$J:$J,\"=\"&($A16&TEXT(H$4,\"MMM-YY\")),'Spesifiserte utgifter'!$E:$E)","v":0},{"$f":"SUMIF('Donasjoner og sponsorutgifter'!$L:$L,\"=\"&($A16&TEXT(I$4,\"MMM-YY\")),'Donasjoner og sponsorutgifter'!$D:$D)+SUMIF('Spesifiserte utgifter'!$J:$J,\"=\"&($A16&TEXT(I$4,\"MMM-YY\")),'Spesifiserte utgifter'!$E:$E)","v":0},{"$f":"SUMIF('Donasjoner og sponsorutgifter'!$L:$L,\"=\"&($A16&TEXT(J$4,\"MMM-YY\")),'Donasjoner og sponsorutgifter'!$D:$D)+SUMIF('Spesifiserte utgifter'!$J:$J,\"=\"&($A16&TEXT(J$4,\"MMM-YY\")),'Spesifiserte utgifter'!$E:$E)","v":0},{"$f":"SUMIF('Donasjoner og sponsorutgifter'!$L:$L,\"=\"&($A16&TEXT(K$4,\"MMM-YY\")),'Donasjoner og sponsorutgifter'!$D:$D)+SUMIF('Spesifiserte utgifter'!$J:$J,\"=\"&($A16&TEXT(K$4,\"MMM-YY\")),'Spesifiserte utgifter'!$E:$E)","v":0},{"$f":"SUMIF('Donasjoner og sponsorutgifter'!$L:$L,\"=\"&($A16&TEXT(L$4,\"MMM-YY\")),'Donasjoner og sponsorutgifter'!$D:$D)+SUMIF('Spesifiserte utgifter'!$J:$J,\"=\"&($A16&TEXT(L$4,\"MMM-YY\")),'Spesifiserte utgifter'!$E:$E)","v":0},{"$f":"SUMIF('Donasjoner og sponsorutgifter'!$L:$L,\"=\"&($A16&TEXT(M$4,\"MMM-YY\")),'Donasjoner og sponsorutgifter'!$D:$D)+SUMIF('Spesifiserte utgifter'!$J:$J,\"=\"&($A16&TEXT(M$4,\"MMM-YY\")),'Spesifiserte utgifter'!$E:$E)","v":0},{"$f":"SUMIF('Donasjoner og sponsorutgifter'!$L:$L,\"=\"&($A16&TEXT(N$4,\"MMM-YY\")),'Donasjoner og sponsorutgifter'!$D:$D)+SUMIF('Spesifiserte utgifter'!$J:$J,\"=\"&($A16&TEXT(N$4,\"MMM-YY\")),'Spesifiserte utgifter'!$E:$E)","v":0},{"$f":"SUM(C16:N16)","v":0}]
[]
[7000,"Datamaskiner",{"$f":"SUMIF('Donasjoner og sponsorutgifter'!$L:$L,\"=\"&($A18&TEXT(C$4,\"MMM-YY\")),'Donasjoner og sponsorutgifter'!$D:$D)+SUMIF('Spesifiserte utgifter'!$J:$J,\"=\"&($A18&TEXT(C$4,\"MMM-YY\")),'Spesifiserte utgifter'!$E:$E)","v":{"v":2500,"d":"kr 2,500.00"}},{"$f":"SUMIF('Donasjoner og sponsorutgifter'!$L:$L,\"=\"&($A18&TEXT(D$4,\"MMM-YY\")),'Donasjoner og sponsorutgifter'!$D:$D)+SUMIF('Spesifiserte utgifter'!$J:$J,\"=\"&($A18&TEXT(D$4,\"MMM-YY\")),'Spesifiserte utgifter'!$E:$E)","v":0},{"$f":"SUMIF('Donasjoner og sponsorutgifter'!$L:$L,\"=\"&($A18&TEXT(E$4,\"MMM-YY\")),'Donasjoner og sponsorutgifter'!$D:$D)+SUMIF('Spesifiserte utgifter'!$J:$J,\"=\"&($A18&TEXT(E$4,\"MMM-YY\")),'Spesifiserte utgifter'!$E:$E)","v":0},{"$f":"SUMIF('Donasjoner og sponsorutgifter'!$L:$L,\"=\"&($A18&TEXT(F$4,\"MMM-YY\")),'Donasjoner og sponsorutgifter'!$D:$D)+SUMIF('Spesifiserte utgifter'!$J:$J,\"=\"&($A18&TEXT(F$4,\"MMM-YY\")),'Spesifiserte utgifter'!$E:$E)","v":0},{"$f":"SUMIF('Donasjoner og sponsorutgifter'!$L:$L,\"=\"&($A18&TEXT(G$4,\"MMM-YY\")),'Donasjoner og sponsorutgifter'!$D:$D)+SUMIF('Spesifiserte utgifter'!$J:$J,\"=\"&($A18&TEXT(G$4,\"MMM-YY\")),'Spesifiserte utgifter'!$E:$E)","v":0},{"$f":"SUMIF('Donasjoner og sponsorutgifter'!$L:$L,\"=\"&($A18&TEXT(H$4,\"MMM-YY\")),'Donasjoner og sponsorutgifter'!$D:$D)+SUMIF('Spesifiserte utgifter'!$J:$J,\"=\"&($A18&TEXT(H$4,\"MMM-YY\")),'Spesifiserte utgifter'!$E:$E)","v":0},{"$f":"SUMIF('Donasjoner og sponsorutgifter'!$L:$L,\"=\"&($A18&TEXT(I$4,\"MMM-YY\")),'Donasjoner og sponsorutgifter'!$D:$D)+SUMIF('Spesifiserte utgifter'!$J:$J,\"=\"&($A18&TEXT(I$4,\"MMM-YY\")),'Spesifiserte utgifter'!$E:$E)","v":0},{"$f":"SUMIF('Donasjoner og sponsorutgifter'!$L:$L,\"=\"&($A18&TEXT(J$4,\"MMM-YY\")),'Donasjoner og sponsorutgifter'!$D:$D)+SUMIF('Spesifiserte utgifter'!$J:$J,\"=\"&($A18&TEXT(J$4,\"MMM-YY\")),'Spesifiserte utgifter'!$E:$E)","v":0},{"$f":"SUMIF('Donasjoner og sponsorutgifter'!$L:$L,\"=\"&($A18&TEXT(K$4,\"MMM-YY\")),'Donasjoner og sponsorutgifter'!$D:$D)+SUMIF('Spesifiserte utgifter'!$J:$J,\"=\"&($A18&TEXT(K$4,\"MMM-YY\")),'Spesifiserte utgifter'!$E:$E)","v":0},{"$f":"SUMIF('Donasjoner og sponsorutgifter'!$L:$L,\"=\"&($A18&TEXT(L$4,\"MMM-YY\")),'Donasjoner og sponsorutgifter'!$D:$D)+SUMIF('Spesifiserte utgifter'!$J:$J,\"=\"&($A18&TEXT(L$4,\"MMM-YY\")),'Spesifiserte utgifter'!$E:$E)","v":0},{"$f":"SUMIF('Donasjoner og sponsorutgifter'!$L:$L,\"=\"&($A18&TEXT(M$4,\"MMM-YY\")),'Donasjoner og sponsorutgifter'!$D:$D)+SUMIF('Spesifiserte utgifter'!$J:$J,\"=\"&($A18&TEXT(M$4,\"MMM-YY\")),'Spesifiserte utgifter'!$E:$E)","v":0},{"$f":"SUMIF('Donasjoner og sponsorutgifter'!$L:$L,\"=\"&($A18&TEXT(N$4,\"MMM-YY\")),'Donasjoner og sponsorutgifter'!$D:$D)+SUMIF('Spesifiserte utgifter'!$J:$J,\"=\"&($A18&TEXT(N$4,\"MMM-YY\")),'Spesifiserte utgifter'!$E:$E)","v":0},{"$f":"SUM(C18:N18)","v":{"v":2500,"d":"kr 2,500.00"}}]
[]
[8000,"Helseplan",{"$f":"SUMIF('Donasjoner og sponsorutgifter'!$L:$L,\"=\"&($A20&TEXT(C$4,\"MMM-YY\")),'Donasjoner og sponsorutgifter'!$D:$D)+SUMIF('Spesifiserte utgifter'!$J:$J,\"=\"&($A20&TEXT(C$4,\"MMM-YY\")),'Spesifiserte utgifter'!$E:$E)","v":0},{"$f":"SUMIF('Donasjoner og sponsorutgifter'!$L:$L,\"=\"&($A20&TEXT(D$4,\"MMM-YY\")),'Donasjoner og sponsorutgifter'!$D:$D)+SUMIF('Spesifiserte utgifter'!$J:$J,\"=\"&($A20&TEXT(D$4,\"MMM-YY\")),'Spesifiserte utgifter'!$E:$E)","v":0},{"$f":"SUMIF('Donasjoner og sponsorutgifter'!$L:$L,\"=\"&($A20&TEXT(E$4,\"MMM-YY\")),'Donasjoner og sponsorutgifter'!$D:$D)+SUMIF('Spesifiserte utgifter'!$J:$J,\"=\"&($A20&TEXT(E$4,\"MMM-YY\")),'Spesifiserte utgifter'!$E:$E)","v":0},{"$f":"SUMIF('Donasjoner og sponsorutgifter'!$L:$L,\"=\"&($A20&TEXT(F$4,\"MMM-YY\")),'Donasjoner og sponsorutgifter'!$D:$D)+SUMIF('Spesifiserte utgifter'!$J:$J,\"=\"&($A20&TEXT(F$4,\"MMM-YY\")),'Spesifiserte utgifter'!$E:$E)","v":0},{"$f":"SUMIF('Donasjoner og sponsorutgifter'!$L:$L,\"=\"&($A20&TEXT(G$4,\"MMM-YY\")),'Donasjoner og sponsorutgifter'!$D:$D)+SUMIF('Spesifiserte utgifter'!$J:$J,\"=\"&($A20&TEXT(G$4,\"MMM-YY\")),'Spesifiserte utgifter'!$E:$E)","v":0},{"$f":"SUMIF('Donasjoner og sponsorutgifter'!$L:$L,\"=\"&($A20&TEXT(H$4,\"MMM-YY\")),'Donasjoner og sponsorutgifter'!$D:$D)+SUMIF('Spesifiserte utgifter'!$J:$J,\"=\"&($A20&TEXT(H$4,\"MMM-YY\")),'Spesifiserte utgifter'!$E:$E)","v":0},{"$f":"SUMIF('Donasjoner og sponsorutgifter'!$L:$L,\"=\"&($A20&TEXT(I$4,\"MMM-YY\")),'Donasjoner og sponsorutgifter'!$D:$D)+SUMIF('Spesifiserte utgifter'!$J:$J,\"=\"&($A20&TEXT(I$4,\"MMM-YY\")),'Spesifiserte utgifter'!$E:$E)","v":0},{"$f":"SUMIF('Donasjoner og sponsorutgifter'!$L:$L,\"=\"&($A20&TEXT(J$4,\"MMM-YY\")),'Donasjoner og sponsorutgifter'!$D:$D)+SUMIF('Spesifiserte utgifter'!$J:$J,\"=\"&($A20&TEXT(J$4,\"MMM-YY\")),'Spesifiserte utgifter'!$E:$E)","v":0},{"$f":"SUMIF('Donasjoner og sponsorutgifter'!$L:$L,\"=\"&($A20&TEXT(K$4,\"MMM-YY\")),'Donasjoner og sponsorutgifter'!$D:$D)+SUMIF('Spesifiserte utgifter'!$J:$J,\"=\"&($A20&TEXT(K$4,\"MMM-YY\")),'Spesifiserte utgifter'!$E:$E)","v":0},{"$f":"SUMIF('Donasjoner og sponsorutgifter'!$L:$L,\"=\"&($A20&TEXT(L$4,\"MMM-YY\")),'Donasjoner og sponsorutgifter'!$D:$D)+SUMIF('Spesifiserte utgifter'!$J:$J,\"=\"&($A20&TEXT(L$4,\"MMM-YY\")),'Spesifiserte utgifter'!$E:$E)","v":0},{"$f":"SUMIF('Donasjoner og sponsorutgifter'!$L:$L,\"=\"&($A20&TEXT(M$4,\"MMM-YY\")),'Donasjoner og sponsorutgifter'!$D:$D)+SUMIF('Spesifiserte utgifter'!$J:$J,\"=\"&($A20&TEXT(M$4,\"MMM-YY\")),'Spesifiserte utgifter'!$E:$E)","v":0},{"$f":"SUMIF('Donasjoner og sponsorutgifter'!$L:$L,\"=\"&($A20&TEXT(N$4,\"MMM-YY\")),'Donasjoner og sponsorutgifter'!$D:$D)+SUMIF('Spesifiserte utgifter'!$J:$J,\"=\"&($A20&TEXT(N$4,\"MMM-YY\")),'Spesifiserte utgifter'!$E:$E)","v":0},{"$f":"SUM(C20:N20)","v":0}]
[]
[9000,"Byggekostnader",{"$f":"SUMIF('Donasjoner og sponsorutgifter'!$L:$L,\"=\"&($A22&TEXT(C$4,\"MMM-YY\")),'Donasjoner og sponsorutgifter'!$D:$D)+SUMIF('Spesifiserte utgifter'!$J:$J,\"=\"&($A22&TEXT(C$4,\"MMM-YY\")),'Spesifiserte utgifter'!$E:$E)","v":0},{"$f":"SUMIF('Donasjoner og sponsorutgifter'!$L:$L,\"=\"&($A22&TEXT(D$4,\"MMM-YY\")),'Donasjoner og sponsorutgifter'!$D:$D)+SUMIF('Spesifiserte utgifter'!$J:$J,\"=\"&($A22&TEXT(D$4,\"MMM-YY\")),'Spesifiserte utgifter'!$E:$E)","v":0},{"$f":"SUMIF('Donasjoner og sponsorutgifter'!$L:$L,\"=\"&($A22&TEXT(E$4,\"MMM-YY\")),'Donasjoner og sponsorutgifter'!$D:$D)+SUMIF('Spesifiserte utgifter'!$J:$J,\"=\"&($A22&TEXT(E$4,\"MMM-YY\")),'Spesifiserte utgifter'!$E:$E)","v":0},{"$f":"SUMIF('Donasjoner og sponsorutgifter'!$L:$L,\"=\"&($A22&TEXT(F$4,\"MMM-YY\")),'Donasjoner og sponsorutgifter'!$D:$D)+SUMIF('Spesifiserte utgifter'!$J:$J,\"=\"&($A22&TEXT(F$4,\"MMM-YY\")),'Spesifiserte utgifter'!$E:$E)","v":0},{"$f":"SUMIF('Donasjoner og sponsorutgifter'!$L:$L,\"=\"&($A22&TEXT(G$4,\"MMM-YY\")),'Donasjoner og sponsorutgifter'!$D:$D)+SUMIF('Spesifiserte utgifter'!$J:$J,\"=\"&($A22&TEXT(G$4,\"MMM-YY\")),'Spesifiserte utgifter'!$E:$E)","v":0},{"$f":"SUMIF('Donasjoner og sponsorutgifter'!$L:$L,\"=\"&($A22&TEXT(H$4,\"MMM-YY\")),'Donasjoner og sponsorutgifter'!$D:$D)+SUMIF('Spesifiserte utgifter'!$J:$J,\"=\"&($A22&TEXT(H$4,\"MMM-YY\")),'Spesifiserte utgifter'!$E:$E)","v":0},{"$f":"SUMIF('Donasjoner og sponsorutgifter'!$L:$L,\"=\"&($A22&TEXT(I$4,\"MMM-YY\")),'Donasjoner og sponsorutgifter'!$D:$D)+SUMIF('Spesifiserte utgifter'!$J:$J,\"=\"&($A22&TEXT(I$4,\"MMM-YY\")),'Spesifiserte utgifter'!$E:$E)","v":0},{"$f":"SUMIF('Donasjoner og sponsorutgifter'!$L:$L,\"=\"&($A22&TEXT(J$4,\"MMM-YY\")),'Donasjoner og sponsorutgifter'!$D:$D)+SUMIF('Spesifiserte utgifter'!$J:$J,\"=\"&($A22&TEXT(J$4,\"MMM-YY\")),'Spesifiserte utgifter'!$E:$E)","v":0},{"$f":"SUMIF('Donasjoner og sponsorutgifter'!$L:$L,\"=\"&($A22&TEXT(K$4,\"MMM-YY\")),'Donasjoner og sponsorutgifter'!$D:$D)+SUMIF('Spesifiserte utgifter'!$J:$J,\"=\"&($A22&TEXT(K$4,\"MMM-YY\")),'Spesifiserte utgifter'!$E:$E)","v":0},{"$f":"SUMIF('Donasjoner og sponsorutgifter'!$L:$L,\"=\"&($A22&TEXT(L$4,\"MMM-YY\")),'Donasjoner og sponsorutgifter'!$D:$D)+SUMIF('Spesifiserte utgifter'!$J:$J,\"=\"&($A22&TEXT(L$4,\"MMM-YY\")),'Spesifiserte utgifter'!$E:$E)","v":0},{"$f":"SUMIF('Donasjoner og sponsorutgifter'!$L:$L,\"=\"&($A22&TEXT(M$4,\"MMM-YY\")),'Donasjoner og sponsorutgifter'!$D:$D)+SUMIF('Spesifiserte utgifter'!$J:$J,\"=\"&($A22&TEXT(M$4,\"MMM-YY\")),'Spesifiserte utgifter'!$E:$E)","v":0},{"$f":"SUMIF('Donasjoner og sponsorutgifter'!$L:$L,\"=\"&($A22&TEXT(N$4,\"MMM-YY\")),'Donasjoner og sponsorutgifter'!$D:$D)+SUMIF('Spesifiserte utgifter'!$J:$J,\"=\"&($A22&TEXT(N$4,\"MMM-YY\")),'Spesifiserte utgifter'!$E:$E)","v":0},{"$f":"SUM(C22:N22)","v":0}]
[]
[10000,"Markedsføring",{"$f":"SUMIF('Donasjoner og sponsorutgifter'!$L:$L,\"=\"&($A24&TEXT(C$4,\"MMM-YY\")),'Donasjoner og sponsorutgifter'!$D:$D)+SUMIF('Spesifiserte utgifter'!$J:$J,\"=\"&($A24&TEXT(C$4,\"MMM-YY\")),'Spesifiserte utgifter'!$E:$E)","v":0},{"$f":"SUMIF('Donasjoner og sponsorutgifter'!$L:$L,\"=\"&($A24&TEXT(D$4,\"MMM-YY\")),'Donasjoner og sponsorutgifter'!$D:$D)+SUMIF('Spesifiserte utgifter'!$J:$J,\"=\"&($A24&TEXT(D$4,\"MMM-YY\")),'Spesifiserte utgifter'!$E:$E)","v":0},{"$f":"SUMIF('Donasjoner og sponsorutgifter'!$L:$L,\"=\"&($A24&TEXT(E$4,\"MMM-YY\")),'Donasjoner og sponsorutgifter'!$D:$D)+SUMIF('Spesifiserte utgifter'!$J:$J,\"=\"&($A24&TEXT(E$4,\"MMM-YY\")),'Spesifiserte utgifter'!$E:$E)","v":0},{"$f":"SUMIF('Donasjoner og sponsorutgifter'!$L:$L,\"=\"&($A24&TEXT(F$4,\"MMM-YY\")),'Donasjoner og sponsorutgifter'!$D:$D)+SUMIF('Spesifiserte utgifter'!$J:$J,\"=\"&($A24&TEXT(F$4,\"MMM-YY\")),'Spesifiserte utgifter'!$E:$E)","v":0},{"$f":"SUMIF('Donasjoner og sponsorutgifter'!$L:$L,\"=\"&($A24&TEXT(G$4,\"MMM-YY\")),'Donasjoner og sponsorutgifter'!$D:$D)+SUMIF('Spesifiserte utgifter'!$J:$J,\"=\"&($A24&TEXT(G$4,\"MMM-YY\")),'Spesifiserte utgifter'!$E:$E)","v":0},{"$f":"SUMIF('Donasjoner og sponsorutgifter'!$L:$L,\"=\"&($A24&TEXT(H$4,\"MMM-YY\")),'Donasjoner og sponsorutgifter'!$D:$D)+SUMIF('Spesifiserte utgifter'!$J:$J,\"=\"&($A24&TEXT(H$4,\"MMM-YY\")),'Spesifiserte utgifter'!$E:$E)","v":0},{"$f":"SUMIF('Donasjoner og sponsorutgifter'!$L:$L,\"=\"&($A24&TEXT(I$4,\"MMM-YY\")),'Donasjoner og sponsorutgifter'!$D:$D)+SUMIF('Spesifiserte utgifter'!$J:$J,\"=\"&($A24&TEXT(I$4,\"MMM-YY\")),'Spesifiserte utgifter'!$E:$E)","v":0},{"$f":"SUMIF('Donasjoner og sponsorutgifter'!$L:$L,\"=\"&($A24&TEXT(J$4,\"MMM-YY\")),'Donasjoner og sponsorutgifter'!$D:$D)+SUMIF('Spesifiserte utgifter'!$J:$J,\"=\"&($A24&TEXT(J$4,\"MMM-YY\")),'Spesifiserte utgifter'!$E:$E)","v":0},{"$f":"SUMIF('Donasjoner og sponsorutgifter'!$L:$L,\"=\"&($A24&TEXT(K$4,\"MMM-YY\")),'Donasjoner og sponsorutgifter'!$D:$D)+SUMIF('Spesifiserte utgifter'!$J:$J,\"=\"&($A24&TEXT(K$4,\"MMM-YY\")),'Spesifiserte utgifter'!$E:$E)","v":0},{"$f":"SUMIF('Donasjoner og sponsorutgifter'!$L:$L,\"=\"&($A24&TEXT(L$4,\"MMM-YY\")),'Donasjoner og sponsorutgifter'!$D:$D)+SUMIF('Spesifiserte utgifter'!$J:$J,\"=\"&($A24&TEXT(L$4,\"MMM-YY\")),'Spesifiserte utgifter'!$E:$E)","v":0},{"$f":"SUMIF('Donasjoner og sponsorutgifter'!$L:$L,\"=\"&($A24&TEXT(M$4,\"MMM-YY\")),'Donasjoner og sponsorutgifter'!$D:$D)+SUMIF('Spesifiserte utgifter'!$J:$J,\"=\"&($A24&TEXT(M$4,\"MMM-YY\")),'Spesifiserte utgifter'!$E:$E)","v":0},{"$f":"SUMIF('Donasjoner og sponsorutgifter'!$L:$L,\"=\"&($A24&TEXT(N$4,\"MMM-YY\")),'Donasjoner og sponsorutgifter'!$D:$D)+SUMIF('Spesifiserte utgifter'!$J:$J,\"=\"&($A24&TEXT(N$4,\"MMM-YY\")),'Spesifiserte utgifter'!$E:$E)","v":0},{"$f":"SUM(C24:N24)","v":0}]
[]
[11000,"Veldedige formål",{"$f":"SUMIF('Donasjoner og sponsorutgifter'!$L:$L,\"=\"&($A26&TEXT(C$4,\"MMM-YY\")),'Donasjoner og sponsorutgifter'!$D:$D)+SUMIF('Spesifiserte utgifter'!$J:$J,\"=\"&($A26&TEXT(C$4,\"MMM-YY\")),'Spesifiserte utgifter'!$E:$E)","v":0},{"$f":"SUMIF('Donasjoner og sponsorutgifter'!$L:$L,\"=\"&($A26&TEXT(D$4,\"MMM-YY\")),'Donasjoner og sponsorutgifter'!$D:$D)+SUMIF('Spesifiserte utgifter'!$J:$J,\"=\"&($A26&TEXT(D$4,\"MMM-YY\")),'Spesifiserte utgifter'!$E:$E)","v":{"v":2500,"d":"kr 2,500.00"}},{"$f":"SUMIF('Donasjoner og sponsorutgifter'!$L:$L,\"=\"&($A26&TEXT(E$4,\"MMM-YY\")),'Donasjoner og sponsorutgifter'!$D:$D)+SUMIF('Spesifiserte utgifter'!$J:$J,\"=\"&($A26&TEXT(E$4,\"MMM-YY\")),'Spesifiserte utgifter'!$E:$E)","v":0},{"$f":"SUMIF('Donasjoner og sponsorutgifter'!$L:$L,\"=\"&($A26&TEXT(F$4,\"MMM-YY\")),'Donasjoner og sponsorutgifter'!$D:$D)+SUMIF('Spesifiserte utgifter'!$J:$J,\"=\"&($A26&TEXT(F$4,\"MMM-YY\")),'Spesifiserte utgifter'!$E:$E)","v":0},{"$f":"SUMIF('Donasjoner og sponsorutgifter'!$L:$L,\"=\"&($A26&TEXT(G$4,\"MMM-YY\")),'Donasjoner og sponsorutgifter'!$D:$D)+SUMIF('Spesifiserte utgifter'!$J:$J,\"=\"&($A26&TEXT(G$4,\"MMM-YY\")),'Spesifiserte utgifter'!$E:$E)","v":0},{"$f":"SUMIF('Donasjoner og sponsorutgifter'!$L:$L,\"=\"&($A26&TEXT(H$4,\"MMM-YY\")),'Donasjoner og sponsorutgifter'!$D:$D)+SUMIF('Spesifiserte utgifter'!$J:$J,\"=\"&($A26&TEXT(H$4,\"MMM-YY\")),'Spesifiserte utgifter'!$E:$E)","v":0},{"$f":"SUMIF('Donasjoner og sponsorutgifter'!$L:$L,\"=\"&($A26&TEXT(I$4,\"MMM-YY\")),'Donasjoner og sponsorutgifter'!$D:$D)+SUMIF('Spesifiserte utgifter'!$J:$J,\"=\"&($A26&TEXT(I$4,\"MMM-YY\")),'Spesifiserte utgifter'!$E:$E)","v":0},{"$f":"SUMIF('Donasjoner og sponsorutgifter'!$L:$L,\"=\"&($A26&TEXT(J$4,\"MMM-YY\")),'Donasjoner og sponsorutgifter'!$D:$D)+SUMIF('Spesifiserte utgifter'!$J:$J,\"=\"&($A26&TEXT(J$4,\"MMM-YY\")),'Spesifiserte utgifter'!$E:$E)","v":0},{"$f":"SUMIF('Donasjoner og sponsorutgifter'!$L:$L,\"=\"&($A26&TEXT(K$4,\"MMM-YY\")),'Donasjoner og sponsorutgifter'!$D:$D)+SUMIF('Spesifiserte utgifter'!$J:$J,\"=\"&($A26&TEXT(K$4,\"MMM-YY\")),'Spesifiserte utgifter'!$E:$E)","v":0},{"$f":"SUMIF('Donasjoner og sponsorutgifter'!$L:$L,\"=\"&($A26&TEXT(L$4,\"MMM-YY\")),'Donasjoner og sponsorutgifter'!$D:$D)+SUMIF('Spesifiserte utgifter'!$J:$J,\"=\"&($A26&TEXT(L$4,\"MMM-YY\")),'Spesifiserte utgifter'!$E:$E)","v":0},{"$f":"SUMIF('Donasjoner og sponsorutgifter'!$L:$L,\"=\"&($A26&TEXT(M$4,\"MMM-YY\")),'Donasjoner og sponsorutgifter'!$D:$D)+SUMIF('Spesifiserte utgifter'!$J:$J,\"=\"&($A26&TEXT(M$4,\"MMM-YY\")),'Spesifiserte utgifter'!$E:$E)","v":0},{"$f":"SUMIF('Donasjoner og sponsorutgifter'!$L:$L,\"=\"&($A26&TEXT(N$4,\"MMM-YY\")),'Donasjoner og sponsorutgifter'!$D:$D)+SUMIF('Spesifiserte utgifter'!$J:$J,\"=\"&($A26&TEXT(N$4,\"MMM-YY\")),'Spesifiserte utgifter'!$E:$E)","v":0},{"$f":"SUM(C26:N26)","v":{"v":2500,"d":"kr 2,500.00"}}]
[]
[12000,"Sponsorutgifter",{"$f":"SUMIF('Donasjoner og sponsorutgifter'!$L:$L,\"=\"&($A28&TEXT(C$4,\"MMM-YY\")),'Donasjoner og sponsorutgifter'!$D:$D)+SUMIF('Spesifiserte utgifter'!$J:$J,\"=\"&($A28&TEXT(C$4,\"MMM-YY\")),'Spesifiserte utgifter'!$E:$E)","v":{"v":1000,"d":"kr 1,000.00"}},{"$f":"SUMIF('Donasjoner og sponsorutgifter'!$L:$L,\"=\"&($A28&TEXT(D$4,\"MMM-YY\")),'Donasjoner og sponsorutgifter'!$D:$D)+SUMIF('Spesifiserte utgifter'!$J:$J,\"=\"&($A28&TEXT(D$4,\"MMM-YY\")),'Spesifiserte utgifter'!$E:$E)","v":0},{"$f":"SUMIF('Donasjoner og sponsorutgifter'!$L:$L,\"=\"&($A28&TEXT(E$4,\"MMM-YY\")),'Donasjoner og sponsorutgifter'!$D:$D)+SUMIF('Spesifiserte utgifter'!$J:$J,\"=\"&($A28&TEXT(E$4,\"MMM-YY\")),'Spesifiserte utgifter'!$E:$E)","v":0},{"$f":"SUMIF('Donasjoner og sponsorutgifter'!$L:$L,\"=\"&($A28&TEXT(F$4,\"MMM-YY\")),'Donasjoner og sponsorutgifter'!$D:$D)+SUMIF('Spesifiserte utgifter'!$J:$J,\"=\"&($A28&TEXT(F$4,\"MMM-YY\")),'Spesifiserte utgifter'!$E:$E)","v":0},{"$f":"SUMIF('Donasjoner og sponsorutgifter'!$L:$L,\"=\"&($A28&TEXT(G$4,\"MMM-YY\")),'Donasjoner og sponsorutgifter'!$D:$D)+SUMIF('Spesifiserte utgifter'!$J:$J,\"=\"&($A28&TEXT(G$4,\"MMM-YY\")),'Spesifiserte utgifter'!$E:$E)","v":0},{"$f":"SUMIF('Donasjoner og sponsorutgifter'!$L:$L,\"=\"&($A28&TEXT(H$4,\"MMM-YY\")),'Donasjoner og sponsorutgifter'!$D:$D)+SUMIF('Spesifiserte utgifter'!$J:$J,\"=\"&($A28&TEXT(H$4,\"MMM-YY\")),'Spesifiserte utgifter'!$E:$E)","v":0},{"$f":"SUMIF('Donasjoner og sponsorutgifter'!$L:$L,\"=\"&($A28&TEXT(I$4,\"MMM-YY\")),'Donasjoner og sponsorutgifter'!$D:$D)+SUMIF('Spesifiserte utgifter'!$J:$J,\"=\"&($A28&TEXT(I$4,\"MMM-YY\")),'Spesifiserte utgifter'!$E:$E)","v":0},{"$f":"SUMIF('Donasjoner og sponsorutgifter'!$L:$L,\"=\"&($A28&TEXT(J$4,\"MMM-YY\")),'Donasjoner og sponsorutgifter'!$D:$D)+SUMIF('Spesifiserte utgifter'!$J:$J,\"=\"&($A28&TEXT(J$4,\"MMM-YY\")),'Spesifiserte utgifter'!$E:$E)","v":0},{"$f":"SUMIF('Donasjoner og sponsorutgifter'!$L:$L,\"=\"&($A28&TEXT(K$4,\"MMM-YY\")),'Donasjoner og sponsorutgifter'!$D:$D)+SUMIF('Spesifiserte utgifter'!$J:$J,\"=\"&($A28&TEXT(K$4,\"MMM-YY\")),'Spesifiserte utgifter'!$E:$E)","v":0},{"$f":"SUMIF('Donasjoner og sponsorutgifter'!$L:$L,\"=\"&($A28&TEXT(L$4,\"MMM-YY\")),'Donasjoner og sponsorutgifter'!$D:$D)+SUMIF('Spesifiserte utgifter'!$J:$J,\"=\"&($A28&TEXT(L$4,\"MMM-YY\")),'Spesifiserte utgifter'!$E:$E)","v":0},{"$f":"SUMIF('Donasjoner og sponsorutgifter'!$L:$L,\"=\"&($A28&TEXT(M$4,\"MMM-YY\")),'Donasjoner og sponsorutgifter'!$D:$D)+SUMIF('Spesifiserte utgifter'!$J:$J,\"=\"&($A28&TEXT(M$4,\"MMM-YY\")),'Spesifiserte utgifter'!$E:$E)","v":0},{"$f":"SUMIF('Donasjoner og sponsorutgifter'!$L:$L,\"=\"&($A28&TEXT(N$4,\"MMM-YY\")),'Donasjoner og sponsorutgifter'!$D:$D)+SUMIF('Spesifiserte utgifter'!$J:$J,\"=\"&($A28&TEXT(N$4,\"MMM-YY\")),'Spesifiserte utgifter'!$E:$E)","v":0},{"$f":"SUM(C28:N28)","v":{"v":1000,"d":"kr 1,000.00"}}]
[]
[null,"Totalt",{"$f":"SUM(C6:C28)","v":{"v":4250,"d":"kr 4,250.00"}},{"v":2500,"d":"kr 2,500.00"},0,0,0,0,0,0,0,0,0,0,{"v":6750,"d":"kr 6,750.00"}]

{"sheet":"Spesifiserte utgifter","index":2,"n_rows":103,"n_cols":10,"rows_kept":103}
["Hovedbokkode","Fakturadato","Fakturanummer","Forespurt av"," Sjekkbeløp ","Mottaker","Sjekkbruk","Distribusjonsmetode","Registreringsdato","Opprettet nøkkelfelt"]
[1000,"2005-01-01",100,"Andy Teal",{"v":750,"d":"kr 750.00"},"Consolidated Messenger ","Mailer","Mail","2005-01-04",{"$f":"A2&TEXT(B2,\"MMM-YY\")","v":"1000Jan-05"}]
[7000,"2005-01-15",101,"Robert Walters",{"v":2500,"d":"kr 2,500.00"},"A. Datum Corporation ","2 datamaskiner","Kreditt","2005-01-20","7000Jan-05"]
[{"$nulls":9},"Jan-00"]
[{"$nulls":9},"Jan-00"]
[{"$nulls":9},"Jan-00"]
[{"$nulls":9},"Jan-00"]
[{"$nulls":9},"Jan-00"]
[{"$nulls":9},"Jan-00"]
[{"$nulls":9},"Jan-00"]
[{"$nulls":9},"Jan-00"]
[{"$nulls":9},"Jan-00"]
[{"$nulls":9},"Jan-00"]
[{"$nulls":9},"Jan-00"]
[{"$nulls":9},"Jan-00"]
[{"$nulls":9},"Jan-00"]
[{"$nulls":9},"Jan-00"]
[{"$nulls":9},"Jan-00"]
[{"$nulls":9},"Jan-00"]
[{"$nulls":9},"Jan-00"]
[{"$nulls":9},"Jan-00"]
[{"$nulls":9},"Jan-00"]
[{"$nulls":9},"Jan-00"]
[{"$nulls":9},"Jan-00"]
[{"$nulls":9},"Jan-00"]
[{"$nulls":9},"Jan-00"]
[{"$nulls":9},"Jan-00"]
[{"$nulls":9},"Jan-00"]
[{"$nulls":9},"Jan-00"]
[{"$nulls":9},"Jan-00"]
[{"$nulls":9},"Jan-00"]
[{"$nulls":9},"Jan-00"]
[{"$nulls":9},"Jan-00"]
[{"$nulls":9},{"$f":"A34&TEXT(B34,\"MMM-YY\")","v":"Jan-00"}]
[{"$nulls":9},"Jan-00"]
[{"$nulls":9},"Jan-00"]
[{"$nulls":9},"Jan-00"]
[{"$nulls":9},"Jan-00"]
[{"$nulls":9},"Jan-00"]
[{"$nulls":9},"Jan-00"]
[{"$nulls":9},"Jan-00"]
[{"$nulls":9},"Jan-00"]
[{"$nulls":9},"Jan-00"]
[{"$nulls":9},"Jan-00"]
[{"$nulls":9},"Jan-00"]
[{"$nulls":9},"Jan-00"]
[{"$nulls":9},"Jan-00"]
[{"$nulls":9},"Jan-00"]
[{"$nulls":9},"Jan-00"]
[{"$nulls":9},"Jan-00"]
[{"$nulls":9},"Jan-00"]
[{"$nulls":9},"Jan-00"]
[{"$nulls":9},"Jan-00"]
[{"$nulls":9},"Jan-00"]
[{"$nulls":9},"Jan-00"]
[{"$nulls":9},"Jan-00"]
[{"$nulls":9},"Jan-00"]
[{"$nulls":9},"Jan-00"]
[{"$nulls":9},"Jan-00"]
[{"$nulls":9},"Jan-00"]
[{"$nulls":9},"Jan-00"]
[{"$nulls":9},"Jan-00"]
[{"$nulls":9},"Jan-00"]
[{"$nulls":9},"Jan-00"]
[{"$nulls":9},"Jan-00"]
[{"$nulls":9},{"$f":"A66&TEXT(B66,\"MMM-YY\")","v":"Jan-00"}]
[{"$nulls":9},"Jan-00"]
[{"$nulls":9},"Jan-00"]
[{"$nulls":9},"Jan-00"]
[{"$nulls":9},"Jan-00"]
[{"$nulls":9},"Jan-00"]
[{"$nulls":9},"Jan-00"]
[{"$nulls":9},"Jan-00"]
[{"$nulls":9},"Jan-00"]
[{"$nulls":9},"Jan-00"]
[{"$nulls":9},"Jan-00"]
[{"$nulls":9},"Jan-00"]
[{"$nulls":9},"Jan-00"]
[{"$nulls":9},"Jan-00"]
[{"$nulls":9},"Jan-00"]
[{"$nulls":9},"Jan-00"]
[{"$nulls":9},"Jan-00"]
[{"$nulls":9},"Jan-00"]
[{"$nulls":9},"Jan-00"]
[{"$nulls":9},"Jan-00"]
[{"$nulls":9},"Jan-00"]
[{"$nulls":9},"Jan-00"]
[{"$nulls":9},"Jan-00"]
[{"$nulls":9},"Jan-00"]
[{"$nulls":9},"Jan-00"]
[{"$nulls":9},"Jan-00"]
[{"$nulls":9},"Jan-00"]
[{"$nulls":9},"Jan-00"]
[{"$nulls":9},"Jan-00"]
[{"$nulls":9},"Jan-00"]
[{"$nulls":9},"Jan-00"]
[{"$nulls":9},"Jan-00"]
[{"$nulls":9},{"$f":"A98&TEXT(B98,\"MMM-YY\")","v":"Jan-00"}]
[{"$nulls":9},"Jan-00"]
[{"$nulls":9},"Jan-00"]
[{"$nulls":9},"Jan-00"]
[{"$nulls":9},"Jan-00"]
[{"$nulls":9},"Jan-00"]

{"sheet":"Donasjoner og sponsorutgifter","index":3,"n_rows":109,"n_cols":12,"rows_kept":109}
["Hovedbokkode","Dato for sjekkforespørsel","Forespurt av"," Sjekkbeløp "," Bidrag i fjor ","Mottaker","Brukt til","Godkjent av","Kategori","Distribusjonsmetode","Registreringsdato","Opprettet nøkkelfelt"]
[12000,"2005-01-20","Susan W. Eaton",{"v":1000,"d":"kr 1,000.00"},0,"School of Fine Art ","Stipend","Kim Ralls","Kunst","Sjekk","2005-01-30",{"$f":"A2&TEXT(B2,\"MMM-YY\")","v":"12000Jan-05"}]
[11000,"2005-02-15","Susan W. Eaton",{"v":2500,"d":"kr 2,500.00"},0,"Wingtip Toys ","Veldedighet","Kathie Flood","Veldedighet","Sjekk","2005-03-01","11000Feb-05"]
[{"$nulls":11},"Jan-00"]
[{"$nulls":11},"Jan-00"]
[{"$nulls":11},"Jan-00"]
[{"$nulls":11},"Jan-00"]
[{"$nulls":11},"Jan-00"]
[{"$nulls":11},"Jan-00"]
[{"$nulls":11},"Jan-00"]
[{"$nulls":11},"Jan-00"]
[{"$nulls":11},"Jan-00"]
[{"$nulls":11},"Jan-00"]
[{"$nulls":11},"Jan-00"]
[{"$nulls":11},"Jan-00"]
[{"$nulls":11},"Jan-00"]
[{"$nulls":11},"Jan-00"]
[{"$nulls":11},"Jan-00"]
[{"$nulls":11},"Jan-00"]
[{"$nulls":11},"Jan-00"]
[{"$nulls":11},"Jan-00"]
[{"$nulls":11},"Jan-00"]
[{"$nulls":11},"Jan-00"]
[{"$nulls":11},"Jan-00"]
[{"$nulls":11},"Jan-00"]
[{"$nulls":11},"Jan-00"]
[{"$nulls":11},"Jan-00"]
[{"$nulls":11},"Jan-00"]
[{"$nulls":11},"Jan-00"]
[{"$nulls":11},"Jan-00"]
[{"$nulls":11},"Jan-00"]
[{"$nulls":11},"Jan-00"]
[{"$nulls":11},"Jan-00"]
[{"$nulls":11},{"$f":"A34&TEXT(B34,\"MMM-YY\")","v":"Jan-00"}]
[{"$nulls":11},"Jan-00"]
[{"$nulls":11},"Jan-00"]
[{"$nulls":11},"Jan-00"]
[{"$nulls":11},"Jan-00"]
[{"$nulls":11},"Jan-00"]
[{"$nulls":11},"Jan-00"]
[{"$nulls":11},"Jan-00"]
[{"$nulls":11},"Jan-00"]
[{"$nulls":11},"Jan-00"]
[{"$nulls":11},"Jan-00"]
[{"$nulls":11},"Jan-00"]
[{"$nulls":11},"Jan-00"]
[{"$nulls":11},"Jan-00"]
[{"$nulls":11},"Jan-00"]
[{"$nulls":11},"Jan-00"]
[{"$nulls":11},"Jan-00"]
[{"$nulls":11},"Jan-00"]
[{"$nulls":11},"Jan-00"]
[{"$nulls":11},"Jan-00"]
[{"$nulls":11},"Jan-00"]
[{"$nulls":11},"Jan-00"]
[{"$nulls":11},"Jan-00"]
[{"$nulls":11},"Jan-00"]
[{"$nulls":11},"Jan-00"]
[{"$nulls":11},"Jan-00"]
[{"$nulls":11},"Jan-00"]
[{"$nulls":11},"Jan-00"]
[{"$nulls":11},"Jan-00"]
[{"$nulls":11},"Jan-00"]
[{"$nulls":11},"Jan-00"]
[{"$nulls":11},"Jan-00"]
[{"$nulls":11},{"$f":"A66&TEXT(B66,\"MMM-YY\")","v":"Jan-00"}]
[{"$nulls":11},"Jan-00"]
[{"$nulls":11},"Jan-00"]
[{"$nulls":11},"Jan-00"]
[{"$nulls":11},"Jan-00"]
[{"$nulls":11},"Jan-00"]
[{"$nulls":11},"Jan-00"]
[{"$nulls":11},"Jan-00"]
[{"$nulls":11},"Jan-00"]
[{"$nulls":11},"Jan-00"]
[{"$nulls":11},"Jan-00"]
[{"$nulls":11},"Jan-00"]
[{"$nulls":11},"Jan-00"]
[{"$nulls":11},"Jan-00"]
[{"$nulls":11},"Jan-00"]
[{"$nulls":11},"Jan-00"]
[{"$nulls":11},"Jan-00"]
[{"$nulls":11},"Jan-00"]
[{"$nulls":11},"Jan-00"]
[{"$nulls":11},"Jan-00"]
[{"$nulls":11},"Jan-00"]
[{"$nulls":11},"Jan-00"]
[{"$nulls":11},"Jan-00"]
[{"$nulls":11},"Jan-00"]
[{"$nulls":11},"Jan-00"]
[{"$nulls":11},"Jan-00"]
[{"$nulls":11},"Jan-00"]
[{"$nulls":11},"Jan-00"]
[{"$nulls":11},"Jan-00"]
[{"$nulls":11},"Jan-00"]
[{"$nulls":11},"Jan-00"]
[{"$nulls":11},"Jan-00"]
[{"$nulls":11},{"$f":"A98&TEXT(B98,\"MMM-YY\")","v":"Jan-00"}]
[{"$nulls":11},"Jan-00"]
[{"$nulls":11},"Jan-00"]
[{"$nulls":11},"Jan-00"]
[{"$nulls":11},"Jan-00"]
[{"$nulls":11},"Jan-00"]
[{"$nulls":11},"Jan-00"]
[{"$nulls":11},"Jan-00"]
[{"$nulls":11},"Jan-00"]
[{"$nulls":11},"Jan-00"]
[{"$nulls":11},"Jan-00"]
[{"$nulls":11},"Jan-00"]